[Event "January 2 Early 2024"]
[Site "https://www.chess.com"]
[Date "2024.01.02"]
[Round "5"]
[White "Aravindh, Chithambaram VR."]
[Black "Arslanov, Shamil"]
[Result "1-0"]
[Board "28"]
[TimeControl "180+1"]
[WhiteFideId "5072786"]
[BlackFideId "4192826"]
[WhiteElo "2923"]
[BlackElo "2687"]
[WhiteTeam "IND"]
[BlackTeam "RUS"]
[WhiteClock "0:00:11"]
[BlackClock "0:00:02"]

1. b3 {[%clk 0:03:00]}  e5 {[%clk 0:02:56]} 2. Bb2 {[%clk 0:02:56]}  d6 {[%clk 0:02:57]} 3. e3 {[%clk 0:02:54]}  f5 {[%clk 0:02:51]} 4. d4 {[%clk 0:02:53]}  e4 {[%clk 0:02:49]} 5. d5 {[%clk 0:02:52]}  Nf6 {[%clk 0:02:49]} 6. Nh3 {[%clk 0:02:51]}  Be7 {[%clk 0:02:50]} 7. Nf4 {[%clk 0:02:51]}  O-O {[%clk 0:02:50]} 8. h4 {[%clk 0:02:50]}  Ng4 {[%clk 0:02:47]} 9. Be2 {[%clk 0:02:47]}  Bf6 {[%clk 0:02:47]} 10. Nc3 {[%clk 0:02:23]}  Ne5 {[%clk 0:02:37]} 11. Qd2 {[%clk 0:02:22]}  Na6 {[%clk 0:02:35]} 12. O-O-O {[%clk 0:02:21]}  Nc5 {[%clk 0:02:35]} 13. Nb5 {[%clk 0:02:20]}  a5 {[%clk 0:02:26]} 14. Nd4 {[%clk 0:02:16]}  Bd7 {[%clk 0:02:22]} 15. a3 {[%clk 0:02:12]}  Qe8 {[%clk 0:02:12]} 16. Kb1 {[%clk 0:02:09]}  b5 {[%clk 0:02:10]} 17. h5 {[%clk 0:01:57]}  Qb8 {[%clk 0:01:45]} 18. h6 {[%clk 0:01:52]}  g6 {[%clk 0:01:45]} 19. Nfe6 {[%clk 0:01:38]}  Re8 {[%clk 0:01:34]} 20. f4 {[%clk 0:01:37]}  exf3 {[%clk 0:01:30]} 21. gxf3 {[%clk 0:01:38]}  Bxe6 {[%clk 0:01:04]} 22. dxe6 {[%clk 0:01:39]}  Qb7 {[%clk 0:01:05]} 23. Bxb5 {[%clk 0:00:52]}  c6 {[%clk 0:00:58]} 24. Be2 {[%clk 0:00:50]}  Rab8 {[%clk 0:00:51]} 25. Rhg1 {[%clk 0:00:44]}  Na4 {[%clk 0:00:37]} 26. Ba1 {[%clk 0:00:39]}  d5 {[%clk 0:00:38]} 27. Nxf5 {[%clk 0:00:27]}  Rxe6 {[%clk 0:00:38]} 28. e4 {[%clk 0:00:14]}  Nc5 {[%clk 0:00:27]} 29. Nd4 {[%clk 0:00:11]}  Rd6 {[%clk 0:00:26]} 30. Qe3 {[%clk 0:00:06]}  Rdd8 {[%clk 0:00:13]} 31. f4 {[%clk 0:00:06]}  Nc4 {[%clk 0:00:14]} 32. Bxc4 {[%clk 0:00:05]}  dxc4 {[%clk 0:00:14]} 33. e5 {[%clk 0:00:04]}  cxb3 {[%clk 0:00:14]} 34. cxb3 {[%clk 0:00:05]}  Rxd4 {[%clk 0:00:10]} 35. Bxd4 {[%clk 0:00:04]}  Nxb3 {[%clk 0:00:10]} 36. Ka2 {[%clk 0:00:04]}  Nxd4 {[%clk 0:00:05]} 37. Rb1 {[%clk 0:00:05]}  Qf7+ {[%clk 0:00:05]} 38. e6 {[%clk 0:00:05]}  Nxe6 {[%clk 0:00:03]} 39. Rxb8+ {[%clk 0:00:05]}  Nd8+ {[%clk 0:00:03]} 40. Qb3 {[%clk 0:00:05]}  Kf8 {[%clk 0:00:03]} 41. Qxf7+ {[%clk 0:00:04]}  Kxf7 {[%clk 0:00:04]} 42. Rd1 {[%clk 0:00:05]}  Ne6 {[%clk 0:00:01]} 43. Rd7+ {[%clk 0:00:05]}  Be7 {[%clk 0:00:01]} 44. Rbb7 {[%clk 0:00:06]}  Nc5 {[%clk 0:00:02]} 45. Rxe7+ {[%clk 0:00:07]}  Kf6 {[%clk 0:00:03]} 46. Rf7+ {[%clk 0:00:08]}  Ke6 {[%clk 0:00:03]} 47. Rbe7+ {[%clk 0:00:09]}  Kd5 {[%clk 0:00:04]} 48. Rxh7 {[%clk 0:00:09]}  Ne6 {[%clk 0:00:04]} 49. Rhf7 {[%clk 0:00:10]}  Nc5 {[%clk 0:00:02]} 50. h7 {[%clk 0:00:11]} 1-0

[Event "January 2 Early 2024"]
[Site "https://www.chess.com"]
[Date "2024.01.02"]
[Round "5"]
[White "Csonka, Balazs"]
[Black "Pranav Anand"]
[Result "0-1"]
[Board "30"]
[TimeControl "180+1"]
[WhiteFideId "742910"]
[BlackFideId "46626786"]
[WhiteElo "2677"]
[BlackElo "2913"]
[WhiteTeam "HUN"]
[BlackTeam "IND"]
[WhiteClock "0:00:01"]
[BlackClock "0:00:46"]

1. d4 {[%clk 0:03:00]}  Nf6 {[%clk 0:02:59]} 2. c4 {[%clk 0:03:00]}  g6 {[%clk 0:03:00]} 3. Nc3 {[%clk 0:02:59]}  Bg7 {[%clk 0:03:00]} 4. e4 {[%clk 0:02:51]}  d6 {[%clk 0:03:00]} 5. Nf3 {[%clk 0:02:50]}  O-O {[%clk 0:02:58]} 6. Be2 {[%clk 0:02:48]}  Bg4 {[%clk 0:02:58]} 7. Be3 {[%clk 0:02:45]}  Nfd7 {[%clk 0:02:55]} 8. O-O {[%clk 0:02:43]}  e5 {[%clk 0:02:55]} 9. d5 {[%clk 0:02:38]}  a5 {[%clk 0:02:53]} 10. Ne1 {[%clk 0:02:34]}  Bxe2 {[%clk 0:02:50]} 11. Qxe2 {[%clk 0:02:34]}  Na6 {[%clk 0:02:44]} 12. Nd3 {[%clk 0:02:35]}  f5 {[%clk 0:02:43]} 13. f3 {[%clk 0:02:32]}  Ndc5 {[%clk 0:02:41]} 14. Nxc5 {[%clk 0:02:30]}  dxc5 {[%clk 0:02:35]} 15. Rad1 {[%clk 0:02:28]}  b6 {[%clk 0:02:29]} 16. exf5 {[%clk 0:01:42]}  gxf5 {[%clk 0:02:28]} 17. g4 {[%clk 0:01:42]}  Qd7 {[%clk 0:02:22]} 18. gxf5 {[%clk 0:01:38]}  Qxf5 {[%clk 0:02:23]} 19. Ne4 {[%clk 0:01:35]}  Kh8 {[%clk 0:02:17]} 20. Kh1 {[%clk 0:01:31]}  Rae8 {[%clk 0:02:12]} 21. Rf2 {[%clk 0:01:28]}  Nb8 {[%clk 0:02:11]} 22. Rg1 {[%clk 0:01:17]}  Nd7 {[%clk 0:02:06]} 23. Rg5 {[%clk 0:00:55]}  Qh3 {[%clk 0:02:05]} 24. Rg3 {[%clk 0:00:53]}  Qh5 {[%clk 0:02:02]} 25. Ng5 {[%clk 0:00:50]}  Nf6 {[%clk 0:01:41]} 26. Ne6 {[%clk 0:00:36]}  Rf7 {[%clk 0:01:41]} 27. Ng5 {[%clk 0:00:31]}  Rfe7 {[%clk 0:01:38]} 28. Rh3 {[%clk 0:00:30]}  Qg6 {[%clk 0:01:36]} 29. Rg2 {[%clk 0:00:30]}  Qb1+ {[%clk 0:01:36]} 30. Rg1 {[%clk 0:00:30]}  Qf5 {[%clk 0:01:34]} 31. Qg2 {[%clk 0:00:27]}  e4 {[%clk 0:01:06]} 32. fxe4 {[%clk 0:00:23]}  Nxe4 {[%clk 0:00:54]} 33. Nxh7 {[%clk 0:00:13]}  Kg8 {[%clk 0:00:53]} 34. Bh6 {[%clk 0:00:06]}  Nf2+ {[%clk 0:00:52]} 35. Qxf2 {[%clk 0:00:06]}  Qxf2 {[%clk 0:00:53]} 36. Rhg3 {[%clk 0:00:03]}  Kxh7 {[%clk 0:00:50]} 37. Bxg7 {[%clk 0:00:04]}  Re1 {[%clk 0:00:46]} 38. Rh3+ {[%clk 0:00:03]}  Kg8 {[%clk 0:00:46]} 39. Bd4+ {[%clk 0:00:01]}  Rxg1# {[%clk 0:00:46]} 0-1

[Event "January 2 Early 2024"]
[Site "https://www.chess.com"]
[Date "2024.01.02"]
[Round "5"]
[White "Bjerre, Jonas Buhl"]
[Black "Iskusnyh, Sergei"]
[Result "1-0"]
[Board "32"]
[TimeControl "180+1"]
[WhiteFideId "1444948"]
[BlackFideId "4120027"]
[WhiteElo "2883"]
[BlackElo "2662"]
[WhiteTeam "DEN"]
[BlackTeam "RUS"]
[WhiteClock "0:00:33"]
[BlackClock "0:00:00"]

1. Nf3 {[%clk 0:03:00]}  d5 {[%clk 0:02:59]} 2. g3 {[%clk 0:02:59]}  Nf6 {[%clk 0:02:58]} 3. Bg2 {[%clk 0:02:59]}  c6 {[%clk 0:02:59]} 4. O-O {[%clk 0:02:58]}  Bf5 {[%clk 0:02:59]} 5. d3 {[%clk 0:02:57]}  e6 {[%clk 0:02:57]} 6. Nh4 {[%clk 0:02:55]}  Bg6 {[%clk 0:02:57]} 7. Nd2 {[%clk 0:02:46]}  Be7 {[%clk 0:02:55]} 8. Nxg6 {[%clk 0:02:45]}  hxg6 {[%clk 0:02:55]} 9. e4 {[%clk 0:02:43]}  c5 {[%clk 0:02:41]} 10. exd5 {[%clk 0:02:31]}  Nxd5 {[%clk 0:02:39]} 11. c4 {[%clk 0:02:26]}  Nb4 {[%clk 0:02:34]} 12. Bxb7 {[%clk 0:02:23]}  Nd7 {[%clk 0:02:31]} 13. Bxa8 {[%clk 0:02:19]}  Qxa8 {[%clk 0:02:31]} 14. Qf3 {[%clk 0:02:18]}  Qd8 {[%clk 0:02:28]} 15. Qe2 {[%clk 0:01:58]}  Nc2 {[%clk 0:02:24]} 16. Rb1 {[%clk 0:01:57]}  Nd4 {[%clk 0:02:24]} 17. Qd1 {[%clk 0:01:53]}  Qa8 {[%clk 0:02:22]} 18. f4 {[%clk 0:01:42]}  Nf6 {[%clk 0:01:32]} 19. Nb3 {[%clk 0:01:40]}  Nf5 {[%clk 0:01:26]} 20. Qf3 {[%clk 0:01:37]}  Qd8 {[%clk 0:01:23]} 21. Bd2 {[%clk 0:01:32]}  O-O {[%clk 0:01:04]} 22. Rbd1 {[%clk 0:01:30]}  Qd7 {[%clk 0:01:02]} 23. Bc3 {[%clk 0:01:28]}  Qa4 {[%clk 0:00:58]} 24. Nd2 {[%clk 0:01:15]}  Rd8 {[%clk 0:00:53]} 25. a3 {[%clk 0:01:14]}  Nd7 {[%clk 0:00:20]} 26. Ne4 {[%clk 0:01:12]}  Nb6 {[%clk 0:00:19]} 27. Qf2 {[%clk 0:01:07]}  Qc6 {[%clk 0:00:17]} 28. Rfe1 {[%clk 0:01:04]}  Na4 {[%clk 0:00:16]} 29. Be5 {[%clk 0:01:03]}  f6 {[%clk 0:00:16]} 30. Bc3 {[%clk 0:01:02]}  Kf7 {[%clk 0:00:14]} 31. Qf3 {[%clk 0:00:59]}  Qb6 {[%clk 0:00:11]} 32. Re2 {[%clk 0:00:56]}  Nxc3 {[%clk 0:00:09]} 33. bxc3 {[%clk 0:00:54]}  Qb3 {[%clk 0:00:09]} 34. Rde1 {[%clk 0:00:50]}  Qxa3 {[%clk 0:00:08]} 35. g4 {[%clk 0:00:48]}  Nd6 {[%clk 0:00:03]} 36. Nxd6+ {[%clk 0:00:43]}  Rxd6 {[%clk 0:00:04]} 37. Rxe6 {[%clk 0:00:35]}  Rxe6 {[%clk 0:00:03]} 38. Rxe6 {[%clk 0:00:36]}  Qxc3 {[%clk 0:00:00]} 39. Qd5 {[%clk 0:00:33]} 1-0

[Event "January 2 Early 2024"]
[Site "https://www.chess.com"]
[Date "2024.01.02"]
[Round "5"]
[White "Tanriverdi, Enes"]
[Black "Durarbayli, Vasif"]
[Result "0-1"]
[Board "34"]
[TimeControl "180+1"]
[WhiteFideId "34543279"]
[BlackFideId "13402935"]
[WhiteElo "2657"]
[BlackElo "2846"]
[WhiteTeam "TUR"]
[BlackTeam "AZE"]
[WhiteClock "0:00:57"]
[BlackClock "0:00:31"]

1. d4 {[%clk 0:03:00]}  d5 {[%clk 0:02:59]} 2. Nf3 {[%clk 0:03:00]}  Nf6 {[%clk 0:02:58]} 3. c4 {[%clk 0:03:01]}  c6 {[%clk 0:02:59]} 4. e3 {[%clk 0:02:59]}  Bf5 {[%clk 0:02:58]} 5. Nc3 {[%clk 0:02:59]}  e6 {[%clk 0:02:58]} 6. Nh4 {[%clk 0:03:00]}  Be4 {[%clk 0:02:59]} 7. f3 {[%clk 0:03:00]}  Bg6 {[%clk 0:02:59]} 8. Qb3 {[%clk 0:03:00]}  Qc7 {[%clk 0:03:00]} 9. Bd2 {[%clk 0:03:01]}  Be7 {[%clk 0:02:59]} 10. cxd5 {[%clk 0:02:55]}  cxd5 {[%clk 0:02:56]} 11. Be2 {[%clk 0:02:29]}  Nc6 {[%clk 0:02:55]} 12. Rc1 {[%clk 0:02:21]}  a6 {[%clk 0:02:35]} 13. g3 {[%clk 0:02:17]}  Nd7 {[%clk 0:02:15]} 14. Nxg6 {[%clk 0:02:09]}  hxg6 {[%clk 0:02:16]} 15. Kf2 {[%clk 0:02:09]}  Rc8 {[%clk 0:02:11]} 16. Kg2 {[%clk 0:02:07]}  f5 {[%clk 0:01:51]} 17. Rhd1 {[%clk 0:01:59]}  Kf7 {[%clk 0:01:52]} 18. Be1 {[%clk 0:02:00]}  Nf6 {[%clk 0:01:48]} 19. Bf2 {[%clk 0:01:45]}  g5 {[%clk 0:01:48]} 20. e4 {[%clk 0:01:41]}  Qd7 {[%clk 0:01:18]} 21. exf5 {[%clk 0:01:35]}  exf5 {[%clk 0:01:18]} 22. Na4 {[%clk 0:01:35]}  Rcd8 {[%clk 0:00:49]} 23. Nb6 {[%clk 0:01:21]}  Qe6 {[%clk 0:00:49]} 24. Re1 {[%clk 0:01:21]}  Na5 {[%clk 0:00:45]} 25. Bd1 {[%clk 0:01:09]}  Nxb3 {[%clk 0:00:41]} 26. Rxe6 {[%clk 0:01:08]}  Nxc1 {[%clk 0:00:38]} 27. Re3 {[%clk 0:00:57]}  Nxa2 {[%clk 0:00:31]} 0-1

[Event "January 2 Early 2024"]
[Site "https://www.chess.com"]
[Date "2024.01.02"]
[Round "5"]
[White "Bryakin, Mikhail"]
[Black "Feuerstack, Aljoscha"]
[Result "1-0"]
[Board "36"]
[TimeControl "180+1"]
[WhiteFideId "4165314"]
[BlackFideId "4681932"]
[WhiteElo "2835"]
[BlackElo "2656"]
[WhiteTeam "SRB"]
[BlackTeam "GER"]
[WhiteClock "0:00:16"]
[BlackClock "0:00:00"]

1. e4 {[%clk 0:02:58]}  c6 {[%clk 0:02:59]} 2. d4 {[%clk 0:02:56]}  d5 {[%clk 0:03:00]} 3. e5 {[%clk 0:02:56]}  a6 {[%clk 0:03:00]} 4. Bd3 {[%clk 0:02:53]}  c5 {[%clk 0:02:57]} 5. dxc5 {[%clk 0:02:51]}  Nc6 {[%clk 0:02:57]} 6. f4 {[%clk 0:02:50]}  Nh6 {[%clk 0:02:41]} 7. Nf3 {[%clk 0:02:44]}  Bf5 {[%clk 0:02:31]} 8. Be3 {[%clk 0:02:44]}  e6 {[%clk 0:02:24]} 9. c3 {[%clk 0:02:42]}  a5 {[%clk 0:02:00]} 10. O-O {[%clk 0:02:41]}  Ng4 {[%clk 0:01:54]} 11. Bd4 {[%clk 0:02:30]}  Nxd4 {[%clk 0:01:51]} 12. cxd4 {[%clk 0:02:31]}  Ne3 {[%clk 0:01:13]} 13. Qa4+ {[%clk 0:02:29]}  Ke7 {[%clk 0:01:14]} 14. Re1 {[%clk 0:02:12]}  Nxg2 {[%clk 0:01:14]} 15. Kxg2 {[%clk 0:02:03]}  Bxd3 {[%clk 0:01:14]} 16. Nc3 {[%clk 0:02:04]}  g6 {[%clk 0:00:58]} 17. Rad1 {[%clk 0:02:03]}  Bf5 {[%clk 0:00:56]} 18. b4 {[%clk 0:02:04]}  Bh6 {[%clk 0:00:52]} 19. Kg3 {[%clk 0:02:01]}  axb4 {[%clk 0:00:44]} 20. Qxb4 {[%clk 0:02:02]}  Qa5 {[%clk 0:00:27]} 21. a3 {[%clk 0:01:51]}  Qxb4 {[%clk 0:00:25]} 22. axb4 {[%clk 0:01:52]}  Ra3 {[%clk 0:00:25]} 23. Nb5 {[%clk 0:01:35]}  Rb3 {[%clk 0:00:25]} 24. Nd6 {[%clk 0:01:36]}  Rxb4 {[%clk 0:00:24]} 25. Nxf5+ {[%clk 0:01:35]}  gxf5 {[%clk 0:00:25]} 26. Rb1 {[%clk 0:01:36]}  Rg8+ {[%clk 0:00:25]} 27. Kf2 {[%clk 0:01:35]}  Rxb1 {[%clk 0:00:25]} 28. Rxb1 {[%clk 0:01:36]}  Rb8 {[%clk 0:00:20]} 29. Ke3 {[%clk 0:01:30]}  Kd7 {[%clk 0:00:19]} 30. Ne1 {[%clk 0:01:11]}  Kc7 {[%clk 0:00:20]} 31. Ra1 {[%clk 0:01:12]}  Rg8 {[%clk 0:00:20]} 32. Nf3 {[%clk 0:01:03]}  Rg2 {[%clk 0:00:20]} 33. Ra8 {[%clk 0:01:03]}  Rg4 {[%clk 0:00:19]} 34. Rh8 {[%clk 0:01:00]}  Bxf4+ {[%clk 0:00:19]} 35. Kf2 {[%clk 0:01:00]}  h6 {[%clk 0:00:19]} 36. Rh7 {[%clk 0:01:01]}  Kc6 {[%clk 0:00:19]} 37. Rxf7 {[%clk 0:01:01]}  Bg5 {[%clk 0:00:16]} 38. h3 {[%clk 0:01:01]}  Re4 {[%clk 0:00:15]} 39. Kg3 {[%clk 0:01:02]}  Be3 {[%clk 0:00:14]} 40. Re7 {[%clk 0:00:54]}  Bxd4 {[%clk 0:00:15]} 41. Rxe6+ {[%clk 0:00:54]}  Kxc5 {[%clk 0:00:15]} 42. Re8 {[%clk 0:00:51]}  Bb2 {[%clk 0:00:13]} 43. Rc8+ {[%clk 0:00:47]}  Kb6 {[%clk 0:00:13]} 44. Re8 {[%clk 0:00:47]}  d4 {[%clk 0:00:13]} 45. Nd2 {[%clk 0:00:44]}  Re2 {[%clk 0:00:13]} 46. Nc4+ {[%clk 0:00:37]}  Kc5 {[%clk 0:00:13]} 47. Na5 {[%clk 0:00:37]}  d3 {[%clk 0:00:12]} 48. Kf3 {[%clk 0:00:34]}  Rxe5 {[%clk 0:00:12]} 49. Rd8 {[%clk 0:00:32]}  Kb5 {[%clk 0:00:09]} 50. Nxb7 {[%clk 0:00:30]}  Kc4 {[%clk 0:00:09]} 51. Nd6+ {[%clk 0:00:27]}  Kc3 {[%clk 0:00:10]} 52. Rc8+ {[%clk 0:00:26]}  Kb4 {[%clk 0:00:06]} 53. Nc4 {[%clk 0:00:16]}  Re2 {[%clk 0:00:03]} 54. Ne3 {[%clk 0:00:16]}  Bd4 {[%clk 0:00:02]} 55. Rc4+ {[%clk 0:00:15]}  Kb3 {[%clk 0:00:01]} 56. Rxd4 {[%clk 0:00:16]}  Kc3 {[%clk 0:00:02]} 57. Rd8 {[%clk 0:00:16]}  d2 {[%clk 0:00:00]} 58. Kxe2 {[%clk 0:00:16]} 1-0

[Event "January 2 Early 2024"]
[Site "https://www.chess.com"]
[Date "2024.01.02"]
[Round "5"]
[White "Gokerkan, Cem Kaan"]
[Black "Manelyuk, Daniil"]
[Result "1-0"]
[Board "37"]
[TimeControl "180+1"]
[WhiteFideId "6336760"]
[BlackFideId "44173920"]
[WhiteElo "2829"]
[BlackElo "2742"]
[WhiteTeam "TUR"]
[BlackTeam "RUS"]
[WhiteClock "0:02:17"]
[BlackClock "0:00:00"]

1. e4 {[%clk 0:02:56]}  c6 {[%clk 0:02:24]} 2. d4 {[%clk 0:02:55]}  d5 {[%clk 0:02:23]} 3. e5 {[%clk 0:02:55]}  Bf5 {[%clk 0:02:22]} 4. h4 {[%clk 0:02:55]}  h5 {[%clk 0:02:23]} 5. c4 {[%clk 0:02:55]}  e6 {[%clk 0:02:22]} 6. Nc3 {[%clk 0:02:55]}  Bb4 {[%clk 0:02:22]} 7. a3 {[%clk 0:02:54]}  Bxc3+ {[%clk 0:02:21]} 8. bxc3 {[%clk 0:02:55]}  dxc4 {[%clk 0:02:20]} 9. Bxc4 {[%clk 0:02:55]}  b5 {[%clk 0:02:18]} 10. Bb3 {[%clk 0:02:52]}  Nd7 {[%clk 0:02:15]} 11. a4 {[%clk 0:02:52]}  Nb6 {[%clk 0:02:14]} 12. axb5 {[%clk 0:02:49]}  cxb5 {[%clk 0:02:14]} 13. Ne2 {[%clk 0:02:45]}  Ne7 {[%clk 0:02:14]} 14. O-O {[%clk 0:02:42]}  O-O {[%clk 0:02:13]} 15. Ng3 {[%clk 0:02:42]}  Bg6 {[%clk 0:02:13]} 16. Nxh5 {[%clk 0:02:38]}  Ned5 {[%clk 0:00:00]} 17. Qg4 {[%clk 0:02:17]} 1-0

[Event "January 2 Early 2024"]
[Site "https://www.chess.com"]
[Date "2024.01.02"]
[Round "5"]
[White "Lima, Kleyton Alcantara"]
[Black "Moskalenko, Alexander"]
[Result "0-1"]
[Board "41"]
[TimeControl "180+1"]
[WhiteFideId "22718397"]
[BlackFideId "4155351"]
[WhiteElo "2610"]
[BlackElo "2819"]
[WhiteTeam "BRA"]
[BlackTeam "RUS"]
[WhiteClock "0:00:29"]
[BlackClock "0:01:27"]

1. e4 {[%clk 0:03:00]}  c5 {[%clk 0:02:56]} 2. Nf3 {[%clk 0:02:59]}  d6 {[%clk 0:02:55]} 3. d4 {[%clk 0:03:00]}  cxd4 {[%clk 0:02:56]} 4. Nxd4 {[%clk 0:03:01]}  Nf6 {[%clk 0:02:56]} 5. Nc3 {[%clk 0:03:01]}  a6 {[%clk 0:02:56]} 6. Bg5 {[%clk 0:02:55]}  e6 {[%clk 0:02:55]} 7. f4 {[%clk 0:02:50]}  h6 {[%clk 0:02:55]} 8. Bh4 {[%clk 0:02:50]}  Qb6 {[%clk 0:02:56]} 9. a3 {[%clk 0:02:50]}  Nc6 {[%clk 0:02:55]} 10. Bf2 {[%clk 0:02:39]}  Qc7 {[%clk 0:02:50]} 11. Qf3 {[%clk 0:02:38]}  Be7 {[%clk 0:02:47]} 12. O-O-O {[%clk 0:02:38]}  g5 {[%clk 0:02:48]} 13. Nxc6 {[%clk 0:02:13]}  bxc6 {[%clk 0:02:49]} 14. e5 {[%clk 0:02:12]}  Nd5 {[%clk 0:02:44]} 15. exd6 {[%clk 0:02:00]}  Qxd6 {[%clk 0:02:38]} 16. g3 {[%clk 0:01:45]}  gxf4 {[%clk 0:02:35]} 17. Ne4 {[%clk 0:01:43]}  Qc7 {[%clk 0:02:31]} 18. Bd4 {[%clk 0:01:37]}  e5 {[%clk 0:02:30]} 19. Bc5 {[%clk 0:01:33]}  h5 {[%clk 0:02:29]} 20. h3 {[%clk 0:01:19]}  f5 {[%clk 0:02:25]} 21. Bxe7 {[%clk 0:01:07]}  fxe4 {[%clk 0:02:24]} 22. Qxe4 {[%clk 0:01:07]}  Qxe7 {[%clk 0:02:24]} 23. gxf4 {[%clk 0:01:05]}  Qf6 {[%clk 0:01:58]} 24. Kb1 {[%clk 0:01:03]}  Rb8 {[%clk 0:01:54]} 25. Ka1 {[%clk 0:00:58]}  Bf5 {[%clk 0:01:46]} 26. Qc4 {[%clk 0:00:51]}  Ne3 {[%clk 0:01:42]} 27. fxe5 {[%clk 0:00:29]}  Qh6 {[%clk 0:01:27]} 0-1

[Event "January 2 Early 2024"]
[Site "https://www.chess.com"]
[Date "2024.01.02"]
[Round "5"]
[White "Kuzmin, Roman"]
[Black "Klukin, Kirill"]
[Result "0-1"]
[Board "42"]
[TimeControl "180+1"]
[WhiteFideId "44134932"]
[BlackFideId "24199273"]
[WhiteElo "2609"]
[BlackElo "2817"]
[WhiteTeam "RUS"]
[BlackTeam "RUS"]
[WhiteClock "0:01:02"]
[BlackClock "0:00:37"]

1. e4 {[%clk 0:03:00]}  c5 {[%clk 0:02:59]} 2. Nf3 {[%clk 0:03:01]}  g6 {[%clk 0:02:59]} 3. d4 {[%clk 0:03:01]}  cxd4 {[%clk 0:03:00]} 4. Nxd4 {[%clk 0:03:02]}  Bg7 {[%clk 0:03:00]} 5. Nc3 {[%clk 0:03:03]}  Nc6 {[%clk 0:03:01]} 6. Be3 {[%clk 0:03:03]}  Nf6 {[%clk 0:03:01]} 7. Nxc6 {[%clk 0:03:04]}  bxc6 {[%clk 0:03:01]} 8. e5 {[%clk 0:03:04]}  Ng8 {[%clk 0:03:02]} 9. Bd4 {[%clk 0:03:04]}  Qa5 {[%clk 0:03:02]} 10. Bc4 {[%clk 0:03:05]}  Bxe5 {[%clk 0:03:02]} 11. O-O {[%clk 0:03:05]}  Nh6 {[%clk 0:02:46]} 12. Re1 {[%clk 0:02:58]}  Bxd4 {[%clk 0:02:46]} 13. Qxd4 {[%clk 0:02:59]}  O-O {[%clk 0:02:44]} 14. Rxe7 {[%clk 0:02:31]}  Nf5 {[%clk 0:02:43]} 15. Bxf7+ {[%clk 0:02:25]}  Rxf7 {[%clk 0:02:43]} 16. Re8+ {[%clk 0:02:25]}  Rf8 {[%clk 0:02:44]} 17. Rxf8+ {[%clk 0:02:25]}  Kxf8 {[%clk 0:02:45]} 18. Qf6+ {[%clk 0:01:49]}  Kg8 {[%clk 0:02:37]} 19. g4 {[%clk 0:01:49]}  Ng7 {[%clk 0:02:03]} 20. Re1 {[%clk 0:01:48]}  Ne6 {[%clk 0:01:49]} 21. f4 {[%clk 0:01:35]}  Bb7 {[%clk 0:01:32]} 22. f5 {[%clk 0:01:34]}  Rf8 {[%clk 0:01:29]} 23. Qe7 {[%clk 0:01:34]}  Qb6+ {[%clk 0:01:12]} 24. Kg2 {[%clk 0:01:28]}  gxf5 {[%clk 0:00:55]} 25. Qxd7 {[%clk 0:01:28]}  c5+ {[%clk 0:00:49]} 26. Kh3 {[%clk 0:01:18]}  Ng5+ {[%clk 0:00:45]} 27. Kg3 {[%clk 0:01:13]}  f4+ {[%clk 0:00:45]} 28. Kf2 {[%clk 0:01:10]}  c4+ {[%clk 0:00:45]} 29. Kf1 {[%clk 0:01:09]}  Qc6 {[%clk 0:00:37]} 30. Qe7 {[%clk 0:01:02]}  Qg2# {[%clk 0:00:37]} 0-1

[Event "January 2 Early 2024"]
[Site "https://www.chess.com"]
[Date "2024.01.02"]
[Round "5"]
[White "Kilpatrick, Callum"]
[Black "Bordi, Kevin"]
[Result "1/2-1/2"]
[Board "43"]
[TimeControl "180+1"]
[WhiteFideId "414425"]
[BlackFideId "621862"]
[WhiteElo "2549"]
[BlackElo "2813"]
[WhiteTeam "ENG"]
[BlackTeam "MNC"]
[WhiteClock "0:00:07"]
[BlackClock "0:00:02"]

1. e4 {[%clk 0:02:59]}  d5 {[%clk 0:02:59]} 2. exd5 {[%clk 0:02:59]}  Qxd5 {[%clk 0:02:59]} 3. Nc3 {[%clk 0:02:59]}  Qa5 {[%clk 0:02:59]} 4. Bc4 {[%clk 0:03:00]}  Nf6 {[%clk 0:02:59]} 5. d3 {[%clk 0:03:00]}  c6 {[%clk 0:02:59]} 6. Bd2 {[%clk 0:02:59]}  Qc7 {[%clk 0:02:59]} 7. Qe2 {[%clk 0:02:59]}  b5 {[%clk 0:02:58]} 8. Bb3 {[%clk 0:02:59]}  Nbd7 {[%clk 0:02:58]} 9. Nf3 {[%clk 0:02:56]}  Nc5 {[%clk 0:02:56]} 10. Ne5 {[%clk 0:02:51]}  e6 {[%clk 0:02:54]} 11. d4 {[%clk 0:02:48]}  Nxb3 {[%clk 0:02:53]} 12. axb3 {[%clk 0:02:48]}  Bd6 {[%clk 0:02:52]} 13. O-O {[%clk 0:02:44]}  O-O {[%clk 0:02:50]} 14. Rfe1 {[%clk 0:02:32]}  Bb7 {[%clk 0:02:49]} 15. b4 {[%clk 0:02:11]}  Bxb4 {[%clk 0:02:21]} 16. Nxb5 {[%clk 0:02:10]}  cxb5 {[%clk 0:02:22]} 17. Bxb4 {[%clk 0:02:10]}  Rfc8 {[%clk 0:02:14]} 18. Qxb5 {[%clk 0:01:58]}  a6 {[%clk 0:01:58]} 19. Qc5 {[%clk 0:01:17]}  Qb8 {[%clk 0:01:48]} 20. Qb6 {[%clk 0:01:17]}  Nd5 {[%clk 0:01:37]} 21. Qa5 {[%clk 0:01:16]}  Rxc2 {[%clk 0:00:54]} 22. Bc3 {[%clk 0:00:50]}  Nf4 {[%clk 0:00:52]} 23. Qa4 {[%clk 0:00:49]}  Rxc3 {[%clk 0:00:22]} 24. bxc3 {[%clk 0:00:50]}  Bxg2 {[%clk 0:00:19]} 25. Qd7 {[%clk 0:00:43]}  Ra7 {[%clk 0:00:18]} 26. Rab1 {[%clk 0:00:39]}  Qa8 {[%clk 0:00:19]} 27. f3 {[%clk 0:00:25]}  Rxd7 {[%clk 0:00:17]} 28. Nxd7 {[%clk 0:00:26]}  Bxf3 {[%clk 0:00:06]} 29. Rb8+ {[%clk 0:00:26]}  Qxb8 {[%clk 0:00:06]} 30. Nxb8 {[%clk 0:00:27]}  Bd5 {[%clk 0:00:06]} 31. Nxa6 {[%clk 0:00:24]}  g5 {[%clk 0:00:05]} 32. Nb4 {[%clk 0:00:21]}  Bc4 {[%clk 0:00:05]} 33. Ra1 {[%clk 0:00:18]}  Kg7 {[%clk 0:00:04]} 34. Kf2 {[%clk 0:00:19]}  Kg6 {[%clk 0:00:04]} 35. Ra5 {[%clk 0:00:19]}  h5 {[%clk 0:00:04]} 36. Nc6 {[%clk 0:00:19]}  f6 {[%clk 0:00:03]} 37. Ne7+ {[%clk 0:00:19]}  Kf7 {[%clk 0:00:03]} 38. Ra7 {[%clk 0:00:20]}  Ke8 {[%clk 0:00:03]} 39. Nc6 {[%clk 0:00:19]}  Nd5 {[%clk 0:00:03]} 40. Rh7 {[%clk 0:00:15]}  h4 {[%clk 0:00:03]} 41. Nb4 {[%clk 0:00:11]}  Nxc3 {[%clk 0:00:02]} 42. Rc7 {[%clk 0:00:12]}  Ne4+ {[%clk 0:00:03]} 43. Ke3 {[%clk 0:00:12]}  Bd5 {[%clk 0:00:04]} 44. Nxd5 {[%clk 0:00:13]}  exd5 {[%clk 0:00:04]} 45. Ra7 {[%clk 0:00:12]}  Kf8 {[%clk 0:00:05]} 46. Kf3 {[%clk 0:00:13]}  f5 {[%clk 0:00:05]} 47. Rd7 {[%clk 0:00:11]}  Nf6 {[%clk 0:00:05]} 48. Ra7 {[%clk 0:00:11]}  Ne4 {[%clk 0:00:05]} 49. Rd7 {[%clk 0:00:11]}  Nf6 {[%clk 0:00:06]} 50. Rb7 {[%clk 0:00:11]}  Ke8 {[%clk 0:00:06]} 51. Rg7 {[%clk 0:00:10]}  Ne4 {[%clk 0:00:06]} 52. Ra7 {[%clk 0:00:09]}  Nf6 {[%clk 0:00:04]} 53. Rg7 {[%clk 0:00:08]}  Ne4 {[%clk 0:00:04]} 54. Ra7 {[%clk 0:00:08]}  Nd6 {[%clk 0:00:04]} 55. Ke3 {[%clk 0:00:07]}  Ne4 {[%clk 0:00:02]} 56. Rg7 {[%clk 0:00:06]}  Kf8 {[%clk 0:00:02]} 57. Ra7 {[%clk 0:00:06]}  Ke8 {[%clk 0:00:02]} 58. Kf3 {[%clk 0:00:07]} 1/2-1/2